[Event "Titled Tuesday Blitz October 31 Early 2023"]
[White "Priasmoro, Novendra"]
[Black "Ilamparthi A R"]
[WhiteFideId "7105029"]
[BlackFideId "45015775"]
[WhiteElo "2699"]
[BlackElo "2915"]
[Result "0-1"]
[Round "3"]
[TimeControl "180+1"]
[Date "2023.10.31"]
[WhiteClock "0:00:03"]
[BlackClock "0:00:34"]
[Board "13"]

1. Nf3 {[%clk 0:03:00]}  Nf6 {[%clk 0:02:58]} 2. g3 {[%clk 0:03:01]}  g6 {[%clk 0:02:58]} 3. Bg2 {[%clk 0:03:02]}  Bg7 {[%clk 0:02:59]} 4. O-O {[%clk 0:03:03]}  O-O {[%clk 0:02:59]} 5. d4 {[%clk 0:03:04]}  d6 {[%clk 0:03:00]} 6. c4 {[%clk 0:03:05]}  Nbd7 {[%clk 0:03:00]} 7. Nc3 {[%clk 0:03:05]}  e5 {[%clk 0:03:00]} 8. e4 {[%clk 0:03:06]}  c6 {[%clk 0:03:00]} 9. h3 {[%clk 0:03:04]}  Qb6 {[%clk 0:02:56]} 10. d5 {[%clk 0:02:32]}  cxd5 {[%clk 0:02:44]} 11. cxd5 {[%clk 0:02:30]}  Nc5 {[%clk 0:02:44]} 12. Nd2 {[%clk 0:02:22]}  Bd7 {[%clk 0:02:42]} 13. b3 {[%clk 0:02:17]}  Rfc8 {[%clk 0:02:41]} 14. Nc4 {[%clk 0:02:16]}  Qa6 {[%clk 0:02:39]} 15. Bb2 {[%clk 0:01:53]}  b5 {[%clk 0:02:32]} 16. Ne3 {[%clk 0:01:52]}  b4 {[%clk 0:02:31]} 17. Ne2 {[%clk 0:01:47]}  Bb5 {[%clk 0:02:23]} 18. Nc1 {[%clk 0:01:27]}  Ncxe4 {[%clk 0:02:09]} 19. Re1 {[%clk 0:01:23]}  Nc3 {[%clk 0:02:03]} 20. Bxc3 {[%clk 0:01:10]}  Rxc3 {[%clk 0:02:03]} 21. Bf1 {[%clk 0:01:09]}  Bxf1 {[%clk 0:01:53]} 22. Rxf1 {[%clk 0:01:10]}  Rac8 {[%clk 0:01:22]} 23. Nc4 {[%clk 0:01:03]}  Rc5 {[%clk 0:01:20]} 24. Ne2 {[%clk 0:00:52]}  Rxd5 {[%clk 0:01:19]} 25. Nxc3 {[%clk 0:00:52]}  Rxd1 {[%clk 0:01:18]} 26. Nxd1 {[%clk 0:00:52]}  d5 {[%clk 0:01:07]} 27. Nce3 {[%clk 0:00:32]}  Ne4 {[%clk 0:00:56]} 28. Nb2 {[%clk 0:00:28]}  Nd2 {[%clk 0:00:51]} 29. Rfd1 {[%clk 0:00:27]}  Nf3+ {[%clk 0:00:51]} 30. Kg2 {[%clk 0:00:28]}  e4 {[%clk 0:00:50]} 31. Rab1 {[%clk 0:00:27]}  Qxa2 {[%clk 0:00:41]} 32. Na4 {[%clk 0:00:09]}  Bd4 {[%clk 0:00:39]} 33. Ng4 {[%clk 0:00:08]}  h5 {[%clk 0:00:37]} 34. Rxd4 {[%clk 0:00:03]}  Qxb1 {[%clk 0:00:34]} 0-1


[Site "https://www.chess.com"]

[Event "Titled Tuesday Blitz October 31 Early 2023"]
[White "Amilal Munkhdalai"]
[Black "Bharath Subramaniyam H"]
[WhiteFideId "4903250"]
[BlackFideId "46634827"]
[WhiteElo "2686"]
[BlackElo "2910"]
[Result "1/2-1/2"]
[Round "3"]
[TimeControl "180+1"]
[Date "2023.10.31"]
[WhiteClock "0:00:15"]
[BlackClock "0:00:14"]
[Board "15"]

1. e4 {[%clk 0:03:00]}  c6 {[%clk 0:02:59]} 2. d4 {[%clk 0:03:00]}  d5 {[%clk 0:03:00]} 3. exd5 {[%clk 0:03:00]}  cxd5 {[%clk 0:03:00]} 4. Bd3 {[%clk 0:03:01]}  Nc6 {[%clk 0:03:00]} 5. c3 {[%clk 0:03:01]}  Nf6 {[%clk 0:03:01]} 6. h3 {[%clk 0:03:01]}  e5 {[%clk 0:03:01]} 7. dxe5 {[%clk 0:03:01]}  Nxe5 {[%clk 0:03:02]} 8. Qe2 {[%clk 0:03:01]}  Qe7 {[%clk 0:03:01]} 9. Bb5+ {[%clk 0:03:01]}  Nc6 {[%clk 0:02:57]} 10. Qxe7+ {[%clk 0:03:01]}  Bxe7 {[%clk 0:02:58]} 11. Nf3 {[%clk 0:03:01]}  Be6 {[%clk 0:02:54]} 12. Be3 {[%clk 0:02:57]}  a6 {[%clk 0:02:51]} 13. Ba4 {[%clk 0:02:57]}  O-O-O {[%clk 0:02:50]} 14. Nbd2 {[%clk 0:02:55]}  b5 {[%clk 0:02:44]} 15. Bc2 {[%clk 0:02:55]}  Kb7 {[%clk 0:02:41]} 16. a4 {[%clk 0:02:54]}  b4 {[%clk 0:02:41]} 17. Nd4 {[%clk 0:02:53]}  Rc8 {[%clk 0:02:33]} 18. Nxc6 {[%clk 0:02:47]}  Rxc6 {[%clk 0:02:33]} 19. Nb3 {[%clk 0:02:48]}  Ka8 {[%clk 0:02:30]} 20. Bd4 {[%clk 0:02:43]}  bxc3 {[%clk 0:02:29]} 21. bxc3 {[%clk 0:02:42]}  Rb8 {[%clk 0:02:24]} 22. O-O {[%clk 0:02:39]}  Ne4 {[%clk 0:02:23]} 23. Bxg7 {[%clk 0:02:23]}  Rg8 {[%clk 0:02:19]} 24. Nd4 {[%clk 0:02:18]}  Rxc3 {[%clk 0:02:11]} 25. Bxe4 {[%clk 0:02:02]}  Rxg7 {[%clk 0:02:10]} 26. Bf5 {[%clk 0:02:02]}  Bc5 {[%clk 0:01:44]} 27. Bxe6 {[%clk 0:01:54]}  Bxd4 {[%clk 0:01:41]} 28. Bxd5+ {[%clk 0:01:54]}  Ka7 {[%clk 0:01:41]} 29. Rab1 {[%clk 0:01:53]}  f6 {[%clk 0:01:40]} 30. Rfd1 {[%clk 0:01:50]}  Bc5 {[%clk 0:01:39]} 31. Be4 {[%clk 0:01:40]}  f5 {[%clk 0:01:34]} 32. Rdc1 {[%clk 0:01:16]}  Rxc1+ {[%clk 0:00:52]} 33. Rxc1 {[%clk 0:01:16]}  Rc7 {[%clk 0:00:52]} 34. Bxf5 {[%clk 0:01:04]}  Bxf2+ {[%clk 0:00:52]} 35. Kxf2 {[%clk 0:01:04]}  Rxc1 {[%clk 0:00:53]} 36. Bxh7 {[%clk 0:01:05]}  Kb6 {[%clk 0:00:54]} 37. g4 {[%clk 0:01:04]}  Rc7 {[%clk 0:00:51]} 38. Bd3 {[%clk 0:01:02]}  Rc3 {[%clk 0:00:46]} 39. Ke3 {[%clk 0:01:00]}  Kc5 {[%clk 0:00:45]} 40. Ke4 {[%clk 0:00:54]}  a5 {[%clk 0:00:43]} 41. h4 {[%clk 0:00:53]}  Kd6 {[%clk 0:00:44]} 42. Bb5 {[%clk 0:00:42]}  Rh3 {[%clk 0:00:41]} 43. h5 {[%clk 0:00:42]}  Ke6 {[%clk 0:00:41]} 44. Kf4 {[%clk 0:00:43]}  Kf7 {[%clk 0:00:37]} 45. Kg5 {[%clk 0:00:40]}  Kg7 {[%clk 0:00:37]} 46. Kf4 {[%clk 0:00:38]}  Rh1 {[%clk 0:00:37]} 47. Be8 {[%clk 0:00:38]}  Rf1+ {[%clk 0:00:36]} 48. Kg5 {[%clk 0:00:38]}  Rh1 {[%clk 0:00:36]} 49. Bc6 {[%clk 0:00:38]}  Rh2 {[%clk 0:00:36]} 50. Kf4 {[%clk 0:00:38]}  Rf2+ {[%clk 0:00:36]} 51. Bf3 {[%clk 0:00:37]}  Ra2 {[%clk 0:00:34]} 52. Bc6 {[%clk 0:00:35]}  Rc2 {[%clk 0:00:33]} 53. Bb5 {[%clk 0:00:35]}  Kh6 {[%clk 0:00:33]} 54. Be8 {[%clk 0:00:32]}  Rc5 {[%clk 0:00:31]} 55. Bb5 {[%clk 0:00:31]}  Rc1 {[%clk 0:00:27]} 56. Be2 {[%clk 0:00:29]}  Rb1 {[%clk 0:00:24]} 57. g5+ {[%clk 0:00:29]}  Kg7 {[%clk 0:00:23]} 58. h6+ {[%clk 0:00:29]}  Kh8 {[%clk 0:00:20]} 59. g6 {[%clk 0:00:29]}  Rb4+ {[%clk 0:00:19]} 60. Kg5 {[%clk 0:00:28]}  Rxa4 {[%clk 0:00:16]} 61. Bb5 {[%clk 0:00:20]}  Rb4 {[%clk 0:00:14]} 62. Bc6 {[%clk 0:00:19]}  Rd4 {[%clk 0:00:14]} 63. Kf6 {[%clk 0:00:14]}  Rd6+ {[%clk 0:00:11]} 64. Kf7 {[%clk 0:00:14]}  Rxg6 {[%clk 0:00:12]} 65. Kxg6 {[%clk 0:00:14]}  a4 {[%clk 0:00:12]} 66. Bxa4 {[%clk 0:00:15]}  Kg8 {[%clk 0:00:13]} 67. Bb3+ {[%clk 0:00:14]}  Kh8 {[%clk 0:00:14]} 68. h7 {[%clk 0:00:15]} 1/2-1/2


[Site "https://www.chess.com"]

[Event "Titled Tuesday Blitz October 31 Early 2023"]
[White "Kazakouski, Valery"]
[Black "Mendez Fortes, Eduardo Jesus"]
[WhiteFideId "13507443"]
[BlackFideId "3502376"]
[WhiteElo "2876"]
[BlackElo "2681"]
[Result "1-0"]
[Round "3"]
[TimeControl "180+1"]
[Date "2023.10.31"]
[WhiteClock "0:00:03"]
[BlackClock "0:00:00"]
[Board "16"]

1. Nf3 {[%clk 0:03:00]}  d5 {[%clk 0:02:56]} 2. c4 {[%clk 0:02:57]}  e6 {[%clk 0:02:56]} 3. g3 {[%clk 0:02:57]}  Nf6 {[%clk 0:02:56]} 4. b3 {[%clk 0:02:57]}  d4 {[%clk 0:02:54]} 5. e3 {[%clk 0:02:56]}  c5 {[%clk 0:02:54]} 6. Bg2 {[%clk 0:02:56]}  Nc6 {[%clk 0:02:54]} 7. exd4 {[%clk 0:02:57]}  cxd4 {[%clk 0:02:54]} 8. O-O {[%clk 0:02:58]}  Be7 {[%clk 0:02:52]} 9. Re1 {[%clk 0:02:57]}  O-O {[%clk 0:02:49]} 10. Bb2 {[%clk 0:02:58]}  Re8 {[%clk 0:02:43]} 11. Na3 {[%clk 0:02:54]}  Bf8 {[%clk 0:02:40]} 12. Nc2 {[%clk 0:02:41]}  e5 {[%clk 0:02:39]} 13. d3 {[%clk 0:02:41]}  h6 {[%clk 0:02:33]} 14. a3 {[%clk 0:02:23]}  a5 {[%clk 0:02:33]} 15. Qd2 {[%clk 0:02:23]}  Bf5 {[%clk 0:02:19]} 16. b4 {[%clk 0:01:46]}  e4 {[%clk 0:01:50]} 17. Nfxd4 {[%clk 0:01:41]}  Bg6 {[%clk 0:01:44]} 18. Nxc6 {[%clk 0:01:32]}  bxc6 {[%clk 0:01:44]} 19. Bxf6 {[%clk 0:01:24]}  Qxf6 {[%clk 0:01:41]} 20. dxe4 {[%clk 0:01:17]}  axb4 {[%clk 0:01:37]} 21. axb4 {[%clk 0:01:15]}  Rxa1 {[%clk 0:01:22]} 22. Nxa1 {[%clk 0:01:14]}  Rd8 {[%clk 0:01:15]} 23. Qe3 {[%clk 0:00:24]}  Bxb4 {[%clk 0:01:12]} 24. Rb1 {[%clk 0:00:24]}  Bd2 {[%clk 0:01:00]} 25. Qe2 {[%clk 0:00:23]}  Qc3 {[%clk 0:00:42]} 26. Rd1 {[%clk 0:00:21]}  Rd4 {[%clk 0:00:24]} 27. h4 {[%clk 0:00:20]}  f6 {[%clk 0:00:21]} 28. e5 {[%clk 0:00:16]}  fxe5 {[%clk 0:00:15]} 29. Bxc6 {[%clk 0:00:14]}  Bf7 {[%clk 0:00:13]} 30. Qxe5 {[%clk 0:00:09]}  Qxc4 {[%clk 0:00:13]} 31. Bf3 {[%clk 0:00:06]}  Qc3 {[%clk 0:00:12]} 32. Qb8+ {[%clk 0:00:06]}  Kh7 {[%clk 0:00:11]} 33. Kg2 {[%clk 0:00:06]}  Bg6 {[%clk 0:00:06]} 34. h5 {[%clk 0:00:06]}  Bf5 {[%clk 0:00:04]} 35. Qb3 {[%clk 0:00:03]}  Qc5 {[%clk 0:00:04]} 36. Qb2 {[%clk 0:00:03]}  Qd6 {[%clk 0:00:03]} 37. Nb3 {[%clk 0:00:02]}  Bc3 {[%clk 0:00:00]} 38. Rxd4 {[%clk 0:00:03]} 1-0


[Site "https://www.chess.com"]

[Event "Titled Tuesday Blitz October 31 Early 2023"]
[White "Svane, Frederik"]
[Black "Leiva, Gianmarco"]
[WhiteFideId "12923044"]
[BlackFideId "3804399"]
[WhiteElo "2869"]
[BlackElo "2681"]
[Result "1/2-1/2"]
[Round "3"]
[TimeControl "180+1"]
[Date "2023.10.31"]
[WhiteClock "0:00:17"]
[BlackClock "0:00:04"]
[Board "17"]

1. d4 {[%clk 0:02:57]}  Nf6 {[%clk 0:02:59]} 2. Nf3 {[%clk 0:02:53]}  e6 {[%clk 0:02:55]} 3. Bf4 {[%clk 0:02:53]}  d5 {[%clk 0:02:55]} 4. Nbd2 {[%clk 0:02:53]}  Bd6 {[%clk 0:02:52]} 5. Bg5 {[%clk 0:02:54]}  Nbd7 {[%clk 0:02:47]} 6. e4 {[%clk 0:02:52]}  dxe4 {[%clk 0:02:48]} 7. Nxe4 {[%clk 0:02:52]}  Be7 {[%clk 0:02:47]} 8. Nxf6+ {[%clk 0:02:37]}  Bxf6 {[%clk 0:02:43]} 9. h4 {[%clk 0:02:35]}  h6 {[%clk 0:02:43]} 10. Be3 {[%clk 0:02:34]}  b6 {[%clk 0:02:40]} 11. Bd3 {[%clk 0:02:30]}  Bb7 {[%clk 0:02:40]} 12. Qe2 {[%clk 0:02:31]}  c5 {[%clk 0:02:38]} 13. O-O-O {[%clk 0:02:21]}  Qc7 {[%clk 0:02:32]} 14. dxc5 {[%clk 0:02:19]}  bxc5 {[%clk 0:02:24]} 15. Bb5 {[%clk 0:01:45]}  Bc6 {[%clk 0:02:24]} 16. Bxc6 {[%clk 0:01:42]}  Qxc6 {[%clk 0:02:24]} 17. Qd3 {[%clk 0:01:42]}  c4 {[%clk 0:02:12]} 18. Qd6 {[%clk 0:01:40]}  Qb5 {[%clk 0:02:12]} 19. Bd4 {[%clk 0:01:35]}  Be7 {[%clk 0:01:55]} 20. Qg3 {[%clk 0:01:34]}  Rg8 {[%clk 0:01:50]} 21. Kb1 {[%clk 0:01:10]}  Nf6 {[%clk 0:01:37]} 22. Ne5 {[%clk 0:01:06]}  Nd5 {[%clk 0:01:35]} 23. Qf3 {[%clk 0:01:02]}  Bf6 {[%clk 0:01:23]} 24. Rhe1 {[%clk 0:01:02]}  Rb8 {[%clk 0:01:09]} 25. Qe2 {[%clk 0:00:47]}  c3 {[%clk 0:00:20]} 26. Qxb5+ {[%clk 0:00:45]}  Rxb5 {[%clk 0:00:20]} 27. b3 {[%clk 0:00:46]}  Bxh4 {[%clk 0:00:19]} 28. a4 {[%clk 0:00:43]}  Rb7 {[%clk 0:00:18]} 29. Nf3 {[%clk 0:00:42]}  Bf6 {[%clk 0:00:18]} 30. Bxf6 {[%clk 0:00:40]}  Nxf6 {[%clk 0:00:19]} 31. Rd3 {[%clk 0:00:41]}  Rc7 {[%clk 0:00:17]} 32. Nd4 {[%clk 0:00:42]}  a6 {[%clk 0:00:17]} 33. Nf5 {[%clk 0:00:42]}  Kf8 {[%clk 0:00:12]} 34. Nd6 {[%clk 0:00:40]}  Nd5 {[%clk 0:00:09]} 35. g3 {[%clk 0:00:37]}  g5 {[%clk 0:00:06]} 36. Nc4 {[%clk 0:00:38]}  Kg7 {[%clk 0:00:05]} 37. Ne3 {[%clk 0:00:38]}  Nb4 {[%clk 0:00:04]} 38. Rd4 {[%clk 0:00:38]}  a5 {[%clk 0:00:03]} 39. Nc4 {[%clk 0:00:37]}  Ra8 {[%clk 0:00:02]} 40. Nxa5 {[%clk 0:00:34]}  Nxc2 {[%clk 0:00:02]} 41. Kxc2 {[%clk 0:00:34]}  Rxa5 {[%clk 0:00:03]} 42. Re3 {[%clk 0:00:34]}  Rf5 {[%clk 0:00:03]} 43. f3 {[%clk 0:00:32]}  h5 {[%clk 0:00:03]} 44. b4 {[%clk 0:00:31]}  g4 {[%clk 0:00:03]} 45. f4 {[%clk 0:00:27]}  Rd5 {[%clk 0:00:01]} 46. Rxd5 {[%clk 0:00:27]}  exd5 {[%clk 0:00:02]} 47. Rd3 {[%clk 0:00:22]}  Rc4 {[%clk 0:00:02]} 48. Rxd5 {[%clk 0:00:21]}  Rxb4 {[%clk 0:00:03]} 49. Rxh5 {[%clk 0:00:20]}  Rxa4 {[%clk 0:00:03]} 50. Rg5+ {[%clk 0:00:20]}  Kf6 {[%clk 0:00:03]} 51. Rxg4 {[%clk 0:00:20]}  Ra3 {[%clk 0:00:03]} 52. Rg5 {[%clk 0:00:21]}  Ke6 {[%clk 0:00:03]} 53. Re5+ {[%clk 0:00:21]}  Kf6 {[%clk 0:00:03]} 54. Re3 {[%clk 0:00:20]}  Kf5 {[%clk 0:00:03]} 55. Re5+ {[%clk 0:00:20]}  Kg4 {[%clk 0:00:04]} 56. Rg5+ {[%clk 0:00:20]}  Kf3 {[%clk 0:00:04]} 57. Rg7 {[%clk 0:00:20]}  f5 {[%clk 0:00:04]} 58. Rg5 {[%clk 0:00:17]}  Ke4 {[%clk 0:00:03]} 59. Rg8 {[%clk 0:00:18]}  Kf3 {[%clk 0:00:03]} 60. Kd3 {[%clk 0:00:15]}  Rb3 {[%clk 0:00:02]} 61. Rg5 {[%clk 0:00:15]}  Ra3 {[%clk 0:00:02]} 62. Rg6 {[%clk 0:00:14]}  Rb3 {[%clk 0:00:02]} 63. Rg7 {[%clk 0:00:15]}  Ra3 {[%clk 0:00:02]} 64. Rg8 {[%clk 0:00:12]}  Rb3 {[%clk 0:00:03]} 65. Rg5 {[%clk 0:00:13]}  Ra3 {[%clk 0:00:03]} 66. Rxf5 {[%clk 0:00:13]}  Kxg3 {[%clk 0:00:03]} 67. Rf8 {[%clk 0:00:14]}  Kg4 {[%clk 0:00:04]} 68. f5 {[%clk 0:00:14]}  Kg5 {[%clk 0:00:04]} 69. f6 {[%clk 0:00:14]}  Kg6 {[%clk 0:00:04]} 70. f7 {[%clk 0:00:15]}  Kg7 {[%clk 0:00:04]} 71. Rc8 {[%clk 0:00:15]}  Kxf7 {[%clk 0:00:05]} 72. Rxc3 {[%clk 0:00:16]}  Ra7 {[%clk 0:00:05]} 73. Rc4 {[%clk 0:00:16]}  Re7 {[%clk 0:00:05]} 74. Re4 {[%clk 0:00:16]}  Rd7+ {[%clk 0:00:05]} 75. Rd4 {[%clk 0:00:17]}  Rxd4+ {[%clk 0:00:04]} 76. Kxd4 {[%clk 0:00:17]} 1/2-1/2


[Site "https://www.chess.com"]

[Event "Titled Tuesday Blitz October 31 Early 2023"]
[White "Klukin, Kirill"]
[Black "Harikrishnan.A.Ra"]
[WhiteFideId "24199273"]
[BlackFideId "5081483"]
[WhiteElo "2845"]
[BlackElo "2671"]
[Result "1-0"]
[Round "3"]
[TimeControl "180+1"]
[Date "2023.10.31"]
[WhiteClock "0:00:08"]
[BlackClock "0:00:14"]
[Board "21"]

1. d4 {[%clk 0:03:00]}  d5 {[%clk 0:02:58]} 2. c4 {[%clk 0:03:01]}  c6 {[%clk 0:02:57]} 3. Nc3 {[%clk 0:03:01]}  Nf6 {[%clk 0:02:57]} 4. Nf3 {[%clk 0:03:01]}  Bf5 {[%clk 0:02:57]} 5. Qb3 {[%clk 0:03:00]}  Qb6 {[%clk 0:02:53]} 6. c5 {[%clk 0:03:00]}  Qc7 {[%clk 0:02:43]} 7. Bf4 {[%clk 0:03:00]}  Qc8 {[%clk 0:02:44]} 8. e3 {[%clk 0:03:00]}  e6 {[%clk 0:02:39]} 9. h3 {[%clk 0:02:53]}  h6 {[%clk 0:02:39]} 10. Be2 {[%clk 0:02:52]}  Be7 {[%clk 0:02:39]} 11. Qa4 {[%clk 0:02:50]}  Nbd7 {[%clk 0:02:39]} 12. b4 {[%clk 0:02:50]}  b5 {[%clk 0:02:31]} 13. Nxb5 {[%clk 0:02:27]}  cxb5 {[%clk 0:02:27]} 14. Bxb5 {[%clk 0:02:28]}  O-O {[%clk 0:02:28]} 15. Ba6 {[%clk 0:02:25]}  Bc2 {[%clk 0:02:05]} 16. Qa5 {[%clk 0:02:06]}  Qd8 {[%clk 0:01:49]} 17. Bc7 {[%clk 0:01:59]}  Qe8 {[%clk 0:01:49]} 18. Rc1 {[%clk 0:01:59]}  Be4 {[%clk 0:01:48]} 19. Bb7 {[%clk 0:01:54]}  Bd3 {[%clk 0:01:23]} 20. Rc3 {[%clk 0:01:42]}  Bc4 {[%clk 0:01:21]} 21. Nd2 {[%clk 0:01:42]}  a6 {[%clk 0:00:57]} 22. Nxc4 {[%clk 0:01:33]}  dxc4 {[%clk 0:00:57]} 23. Rxc4 {[%clk 0:01:34]}  Ra7 {[%clk 0:00:56]} 24. c6 {[%clk 0:01:24]}  Nd5 {[%clk 0:00:41]} 25. O-O {[%clk 0:00:42]}  N7f6 {[%clk 0:00:30]} 26. Bh2 {[%clk 0:00:33]}  Bd8 {[%clk 0:00:23]} 27. Qa3 {[%clk 0:00:33]}  Bc7 {[%clk 0:00:21]} 28. Bxc7 {[%clk 0:00:28]}  Nxc7 {[%clk 0:00:22]} 29. Rc5 {[%clk 0:00:29]}  Ne4 {[%clk 0:00:21]} 30. Rc2 {[%clk 0:00:28]}  Nd6 {[%clk 0:00:20]} 31. Rfc1 {[%clk 0:00:28]}  Ncb5 {[%clk 0:00:19]} 32. Qa5 {[%clk 0:00:27]}  Qb8 {[%clk 0:00:18]} 33. a4 {[%clk 0:00:26]}  Nc7 {[%clk 0:00:18]} 34. Qe5 {[%clk 0:00:24]}  Nd5 {[%clk 0:00:17]} 35. c7 {[%clk 0:00:14]}  Qxb7 {[%clk 0:00:17]} 36. Qxd6 {[%clk 0:00:15]}  Nxc7 {[%clk 0:00:17]} 37. Rxc7 {[%clk 0:00:14]}  Qb8 {[%clk 0:00:18]} 38. Qxf8+ {[%clk 0:00:13]}  Qxf8 {[%clk 0:00:16]} 39. Rxa7 {[%clk 0:00:13]}  Qxb4 {[%clk 0:00:16]} 40. Rxa6 {[%clk 0:00:13]}  Qd2 {[%clk 0:00:16]} 41. Rac6 {[%clk 0:00:14]}  Qa2 {[%clk 0:00:15]} 42. R6c4 {[%clk 0:00:14]}  h5 {[%clk 0:00:16]} 43. h4 {[%clk 0:00:14]}  Kh7 {[%clk 0:00:16]} 44. g3 {[%clk 0:00:14]}  Kg6 {[%clk 0:00:15]} 45. Rb4 {[%clk 0:00:14]}  Kf5 {[%clk 0:00:15]} 46. d5 {[%clk 0:00:09]}  exd5 {[%clk 0:00:13]} 47. Rd4 {[%clk 0:00:09]}  Kg6 {[%clk 0:00:11]} 48. Rcd1 {[%clk 0:00:09]}  f6 {[%clk 0:00:11]} 49. Kg2 {[%clk 0:00:10]}  Kf7 {[%clk 0:00:11]} 50. R1d2 {[%clk 0:00:10]}  Qa3 {[%clk 0:00:10]} 51. Rc2 {[%clk 0:00:09]}  Kg6 {[%clk 0:00:10]} 52. Rc7 {[%clk 0:00:09]}  Qd6 {[%clk 0:00:06]} 53. Rb7 {[%clk 0:00:09]}  Qc6 {[%clk 0:00:06]} 54. Rb5 {[%clk 0:00:09]}  Qa6 {[%clk 0:00:06]} 55. Rbxd5 {[%clk 0:00:09]}  Kh6 {[%clk 0:00:07]} 56. Kh2 {[%clk 0:00:09]}  g6 {[%clk 0:00:06]} 57. a5 {[%clk 0:00:09]}  Qf1 {[%clk 0:00:07]} 58. Rd2 {[%clk 0:00:09]}  Qa1 {[%clk 0:00:07]} 59. Kg2 {[%clk 0:00:06]}  Qa4 {[%clk 0:00:06]} 60. Kh2 {[%clk 0:00:05]}  Qa1 {[%clk 0:00:06]} 61. Rc2 {[%clk 0:00:03]}  Qa4 {[%clk 0:00:06]} 62. Rdc5 {[%clk 0:00:04]}  Qa1 {[%clk 0:00:06]} 63. Rc6 {[%clk 0:00:04]}  Qa4 {[%clk 0:00:05]} 64. a6 {[%clk 0:00:04]}  g5 {[%clk 0:00:04]} 65. Rxf6+ {[%clk 0:00:04]}  Kg7 {[%clk 0:00:04]} 66. Rfc6 {[%clk 0:00:04]}  gxh4 {[%clk 0:00:04]} 67. Rc7+ {[%clk 0:00:04]}  Kg6 {[%clk 0:00:05]} 68. a7 {[%clk 0:00:04]}  hxg3+ {[%clk 0:00:04]} 69. fxg3 {[%clk 0:00:05]}  h4 {[%clk 0:00:05]} 70. R7c6+ {[%clk 0:00:06]}  Kg5 {[%clk 0:00:04]} 71. R2c5+ {[%clk 0:00:06]}  Kg4 {[%clk 0:00:05]} 72. Rc4+ {[%clk 0:00:06]}  Kf3 {[%clk 0:00:06]} 73. Rxa4 {[%clk 0:00:06]}  Kf2 {[%clk 0:00:05]} 74. gxh4 {[%clk 0:00:06]}  Kf1 {[%clk 0:00:06]} 75. e4 {[%clk 0:00:07]}  Kf2 {[%clk 0:00:06]} 76. e5 {[%clk 0:00:07]}  Kf3 {[%clk 0:00:07]} 77. e6 {[%clk 0:00:08]}  Kf2 {[%clk 0:00:07]} 78. e7 {[%clk 0:00:09]}  Kf1 {[%clk 0:00:08]} 79. h5 {[%clk 0:00:10]}  Kf2 {[%clk 0:00:09]} 80. h6 {[%clk 0:00:11]}  Kf3 {[%clk 0:00:10]} 81. h7 {[%clk 0:00:12]}  Kf2 {[%clk 0:00:11]} 82. h8=Q {[%clk 0:00:12]}  Kf1 {[%clk 0:00:12]} 83. e8=Q {[%clk 0:00:12]}  Kf2 {[%clk 0:00:13]} 84. a8=Q {[%clk 0:00:11]}  Kf1 {[%clk 0:00:14]} 85. Rf4# {[%clk 0:00:08]} 1-0


[Site "https://www.chess.com"]

[Event "Titled Tuesday Blitz October 31 Early 2023"]
[White "Yen, William"]
[Black "Sychev, Klementy"]
[WhiteFideId "30932025"]
[BlackFideId "4114060"]
[WhiteElo "2668"]
[BlackElo "2836"]
[Result "1/2-1/2"]
[Round "3"]
[TimeControl "180+1"]
[Date "2023.10.31"]
[WhiteClock "0:00:05"]
[BlackClock "0:00:03"]
[Board "22"]

1. e4 {[%clk 0:03:00]}  a6 {[%clk 0:03:00]} 2. d4 {[%clk 0:02:59]}  c6 {[%clk 0:03:00]} 3. Nf3 {[%clk 0:02:58]}  d5 {[%clk 0:03:00]} 4. Bd3 {[%clk 0:02:59]}  Bg4 {[%clk 0:02:59]} 5. h3 {[%clk 0:02:58]}  Bh5 {[%clk 0:02:56]} 6. c3 {[%clk 0:02:48]}  e6 {[%clk 0:02:47]} 7. Nbd2 {[%clk 0:02:45]}  Be7 {[%clk 0:02:46]} 8. a4 {[%clk 0:02:33]}  Nf6 {[%clk 0:02:43]} 9. e5 {[%clk 0:02:32]}  Nfd7 {[%clk 0:02:42]} 10. b4 {[%clk 0:02:30]}  a5 {[%clk 0:02:42]} 11. b5 {[%clk 0:02:29]}  c5 {[%clk 0:02:43]} 12. Ba3 {[%clk 0:02:24]}  b6 {[%clk 0:02:27]} 13. Bc2 {[%clk 0:02:20]}  Ra7 {[%clk 0:02:26]} 14. Nf1 {[%clk 0:02:17]}  Rc7 {[%clk 0:02:25]} 15. Ne3 {[%clk 0:01:36]}  cxd4 {[%clk 0:02:04]} 16. cxd4 {[%clk 0:01:37]}  Bxa3 {[%clk 0:02:03]} 17. Rxa3 {[%clk 0:01:35]}  f6 {[%clk 0:01:53]} 18. exf6 {[%clk 0:01:29]}  Qxf6 {[%clk 0:01:20]} 19. Ng4 {[%clk 0:01:28]}  Qe7 {[%clk 0:01:13]} 20. Re3 {[%clk 0:01:20]}  Qb4+ {[%clk 0:01:10]} 21. Kf1 {[%clk 0:01:20]}  O-O {[%clk 0:01:09]} 22. Rxe6 {[%clk 0:01:16]}  Qb2 {[%clk 0:01:01]} 23. Re2 {[%clk 0:01:11]}  Qc3 {[%clk 0:01:02]} 24. Ng5 {[%clk 0:00:53]}  Nf6 {[%clk 0:00:47]} 25. Ne6 {[%clk 0:00:51]}  Nxg4 {[%clk 0:00:19]} 26. hxg4 {[%clk 0:00:51]}  Bxg4 {[%clk 0:00:19]} 27. Bxh7+ {[%clk 0:00:47]}  Kf7 {[%clk 0:00:19]} 28. Nxc7 {[%clk 0:00:31]}  Bxe2+ {[%clk 0:00:19]} 29. Qxe2 {[%clk 0:00:32]}  Qc1+ {[%clk 0:00:19]} 30. Qe1 {[%clk 0:00:31]}  Qxc7 {[%clk 0:00:19]} 31. Rh3 {[%clk 0:00:23]}  Nd7 {[%clk 0:00:17]} 32. Rf3+ {[%clk 0:00:21]}  Nf6 {[%clk 0:00:17]} 33. Bf5 {[%clk 0:00:17]}  Re8 {[%clk 0:00:17]} 34. Qb1 {[%clk 0:00:12]}  Qc4+ {[%clk 0:00:15]} 35. Kg1 {[%clk 0:00:12]}  Kf8 {[%clk 0:00:14]} 36. Bg6 {[%clk 0:00:08]}  Rc8 {[%clk 0:00:09]} 37. Bd3 {[%clk 0:00:08]}  Qxd4 {[%clk 0:00:09]} 38. Bf5 {[%clk 0:00:08]}  Re8 {[%clk 0:00:09]} 39. Bg6 {[%clk 0:00:06]}  Re2 {[%clk 0:00:07]} 40. Kh2 {[%clk 0:00:04]}  Qh4+ {[%clk 0:00:06]} 41. Kg1 {[%clk 0:00:02]}  Qd4 {[%clk 0:00:05]} 42. Qf5 {[%clk 0:00:02]}  Re1+ {[%clk 0:00:04]} 43. Kh2 {[%clk 0:00:03]}  Qe5+ {[%clk 0:00:02]} 44. Qxe5 {[%clk 0:00:03]}  Rxe5 {[%clk 0:00:03]} 45. g3 {[%clk 0:00:04]}  d4 {[%clk 0:00:03]} 46. Rd3 {[%clk 0:00:04]}  Rd5 {[%clk 0:00:03]} 47. Kg2 {[%clk 0:00:04]}  Ke7 {[%clk 0:00:03]} 48. f4 {[%clk 0:00:03]}  Ke6 {[%clk 0:00:02]} 49. Kf3 {[%clk 0:00:03]}  Rd8 {[%clk 0:00:03]} 50. g4 {[%clk 0:00:03]}  Kd5 {[%clk 0:00:03]} 51. Bf7+ {[%clk 0:00:03]}  Kc5 {[%clk 0:00:03]} 52. g5 {[%clk 0:00:02]}  Nd7 {[%clk 0:00:04]} 53. Ke4 {[%clk 0:00:03]}  Rf8 {[%clk 0:00:03]} 54. g6 {[%clk 0:00:04]}  Nf6+ {[%clk 0:00:03]} 55. Ke5 {[%clk 0:00:04]}  Rd8 {[%clk 0:00:04]} 56. f5 {[%clk 0:00:04]}  Rd7 {[%clk 0:00:04]} 57. Be6 {[%clk 0:00:04]}  Rd8 {[%clk 0:00:04]} 58. Bf7 {[%clk 0:00:04]}  Rd6 {[%clk 0:00:04]} 59. Be6 {[%clk 0:00:05]}  Ng4+ {[%clk 0:00:04]} 60. Kf4 {[%clk 0:00:05]}  Nf6 {[%clk 0:00:04]} 61. Ke5 {[%clk 0:00:05]}  Nh5 {[%clk 0:00:03]} 62. Rh3 {[%clk 0:00:05]}  Nf6 {[%clk 0:00:03]} 63. Rd3 {[%clk 0:00:05]} 1/2-1/2


[Site "https://www.chess.com"]